fUSD/lending_fUSD_20251108
["ID","MTS","AMOUNT","RATE_DAILY","PERIOD"]
[393403316,1762594232114,-500.0,0.00017999,2]
[393403317,1762594232127,-500.0,0.00017999,2]
[393403318,1762594232136,-500.0,0.00017999,2]
[393403319,1762594232146,-500.0,0.00017999,2]
[393403320,1762594232155,-500.0,0.00017999,2]
[393403321,1762594232165,-500.0,0.00017999,2]
[393403322,1762594232174,-500.0,0.00017999,2]
[393403323,1762594232183,-500.0,0.00017999,2]
[393403324,1762594232193,-500.0,0.00017999,2]
[393403325,1762594232203,-500.0,0.00017999,2]
[393403326,1762594232213,-500.0,0.00017999,2]
[393403327,1762594232227,-327.7394853,0.00017999,2]
[393403328,1762594232241,-500.0,0.00017999,2]
[393403329,1762594232251,-500.0,0.00017999,2]
[393403330,1762594232261,-500.0,0.00017999,2]
[393403331,1762594232271,-500.0,0.00017999,2]
[393403332,1762594232281,-500.0,0.00017999,2]
[393403333,1762594232291,-500.0,0.00017999,2]
[393403334,1762594232301,-500.0,0.00017999,2]
[393403335,1762594232310,-500.0,0.00017999,2]
[393403336,1762594232319,-500.0,0.00017999,2]
[393403337,1762594232330,-500.0,0.00017999,2]
[393403338,1762594232339,-500.0,0.00017999,2]
[393403339,1762594232349,-500.0,0.00017999,2]
[393403340,1762594232358,-500.0,0.00017999,2]
[393403341,1762594232367,-500.0,0.00017999,2]
[393403342,1762594232377,-500.0,0.00017999,2]
[393403343,1762594232386,-500.0,0.00017999,2]
[393403344,1762594232395,-500.0,0.00017999,2]
[393403345,1762594232405,-380.17169352,0.00017999,2]
[393403346,1762594232414,-58231.58855868,0.00018,2]
[393403347,1762594232428,-10248.66105816,0.00018,2]
[393403348,1762594232439,-24010.04943019,0.00018,2]
[393403349,1762594232450,-31225.6311464,0.00018,2]
[393403350,1762594232461,-511.71246314,0.00018,2]
[393403361,1762594237461,-2640.41739866,0.00018,2]
[393403362,1762594237476,-1612.48889302,0.00018,2]
[393403363,1762594237487,-2156.88,0.00018,2]
[393403364,1762594237498,-2622.88387581,0.00018,2]
[393403365,1762594237520,-9898.96667457,0.00018,2]
[393403366,1762594237531,-448.40467669,0.00018,2]
[393403367,1762594237541,-1117.23653689,0.00018,2]
[393403368,1762594237576,-513.97095028,0.00018,2]
[393403369,1762594237632,-2256.70555665,0.00018,2]
[393403370,1762594237688,-2145.9143449,0.00018,2]
[393403385,1762594239509,-14337.99540951,0.00018,2]
[393403388,1762594239522,-34098.49229929,0.00018,2]
[393403390,1762594239534,-169377.82506826,0.00018,2]
[393403392,1762594239545,-298352.54506458,0.00018,2]
[393403393,1762594239560,-515579.30760095,0.00018,2]
[393403394,1762594239934,-1.7e-07,0.00018,2]
[393403395,1762594239946,-3236.0784344,0.00018,2]
[393403396,1762594239957,-523.49738546,0.00018,2]
[393403397,1762594239970,-297.7262798,0.00018,2]
[393403398,1762594239982,-682.60523184,0.00018,2]
[393403399,1762594239994,-915.6857705,0.00018,2]
[393403400,1762594240006,-317.32947119,0.00018,2]
[393403404,1762594243095,-485.67618877,0.00018,2]
[393403405,1762594243109,-466.7936093,0.00018,2]
[393403406,1762594243149,-71003.08854247,0.00018,2]
[393403407,1762594243167,-3500.0,0.00018,2]
[393403408,1762594243206,-407.42164005,0.00018,2]
[393403430,1762594245960,-8071.5555672,0.00018,2]
[393403431,1762594245974,-462.70739025,0.00018,2]
[393403432,1762594245987,-794.30477733,0.00018,2]
[393403433,1762594246017,-426.55067345,0.00018,2]
[393403435,1762594328509,473.83,0.00013699,2]
[393403441,1762595184014,483.64125691,0.00038974,120]
[393403449,1762595431628,-176.22,0.00016478,2]
[393403450,1762595431638,-250.0,0.00017,2]
[393403451,1762595431648,-200.0,0.000177,6]
[393403452,1762595431657,-500.0,0.000178,6]
[393403453,1762595431666,-550.0,0.00017899,2]
[393403456,1762595431833,-300.0,0.00017899,2]
[393403457,1762595431843,-300.0,0.00017899,2]
[393403458,1762595431853,-1200.0,0.00017899,2]
[393403459,1762595431863,-710.6813,0.000179,2]
[393403460,1762595431872,-805.27833644,0.000179,2]
[393403461,1762595431882,-805.27833644,0.000179,2]
[393403462,1762595431891,-1460.27688116,0.000179,2]
[393403463,1762595431902,-1052.42829316,0.000179,2]
[393403464,1762595431914,-1557.42956421,0.000179,2]
[393403465,1762595431929,-3147.93126147,0.000179,2]
[393403466,1762595431938,-4067.12454702,0.000179,2]
[393403467,1762595431950,-1515.11132783,0.000179,2]
[393403468,1762595431959,-800.0,0.000179,6]
[393403469,1762595431969,-2500.0,0.000179,2]
[393403470,1762595431978,-277.03103175,0.000179,2]
[393403471,1762595431988,-398.43013462,0.000179,2]
[393403472,1762595431997,-500.0,0.00017973,2]
[393403473,1762595432007,-500.0,0.00017973,2]
[393403474,1762595432016,-500.0,0.00017973,2]
[393403475,1762595432025,-500.0,0.00017973,2]
[393403476,1762595432035,-500.0,0.00017973,2]
[393403477,1762595432044,-500.0,0.00017973,2]
[393403478,1762595432054,-486.35532093,0.00017973,2]
[393403479,1762595432063,-506.43722381,0.00017973,2]
[393403480,1762595432073,-500.0,0.00017973,2]
[393403481,1762595432083,-616.72412862,0.00017973,2]
[393403482,1762595432092,-745.56,0.0001799,2]
[393403483,1762595432102,-745.56,0.0001799,2]
[393403485,1762595432112,-745.56,0.0001799,2]
[393403487,1762595432121,-745.56,0.0001799,2]
[393403489,1762595432131,-745.56,0.0001799,2]
[393403491,1762595432140,-3182.742,0.00017997,2]
[393403493,1762595432149,-180.159,0.00017997,2]
[393403495,1762595432159,-274.0,0.00017997,2]
[393403498,1762595432168,-319.95081928,0.00017999,2]
[393403501,1762595432177,-500.0,0.00017999,2]
[393403502,1762595432187,-574.14159547,0.00017999,2]
[393403503,1762595432197,-500.0,0.00017999,2]
[393403504,1762595432206,-307.45218061,0.00017999,2]
[393403505,1762595432215,-500.0,0.00017999,2]
[393403506,1762595432224,-500.0,0.00017999,2]
[393403507,1762595432234,-500.0,0.00017999,2]
[393403508,1762595432243,-500.0,0.00017999,2]
[393403509,1762595432252,-522.47521665,0.00017999,2]
[393403510,1762595432262,-500.0,0.00017999,2]
[393403511,1762595432271,-500.0,0.00017999,2]
[393403512,1762595432281,-624.06295805,0.00017999,2]
[393403513,1762595432292,-500.0,0.00017999,2]
[393403514,1762595432301,-500.0,0.00017999,2]
[393403515,1762595432311,-500.0,0.00017999,2]
[393403516,1762595432321,-500.0,0.00017999,2]
[393403517,1762595432330,-500.0,0.00017999,2]
[393403518,1762595432339,-500.0,0.00017999,2]
[393403519,1762595432349,-143312.22946171,0.00018,2]
[393403520,1762595432360,-54234.16964207,0.00018,2]
[393403521,1762595432371,-38304.75757606,0.00018,2]
[393403522,1762595432383,-189481.16616262,0.00018,2]
[393403527,1762595437665,-2206.8805,0.000179,2]
[393403528,1762595437674,-7841.77081763,0.00018,2]
[393403529,1762595437778,-581.52582,0.00018,2]
[393403530,1762595437792,-15801.9010878,0.00018,2]
[393403531,1762595437879,-1000.0,0.00018,2]
[393403555,1762595439804,-886.59563417,0.00018,2]
[393403556,1762595439816,-5395.16350019,0.00018,2]
[393403557,1762595439911,-555.72,0.00018,2]
[393403558,1762595440018,-1026.95,0.00018,2]
[393403586,1762595444042,-2207.96057256,0.00018,2]
[393403589,1762595444054,-1521.41422597,0.00018,2]
[393403591,1762595444360,-1927.20040526,0.00018,2]
[393403599,1762595445792,-324.62,0.00018,2]
[393403616,1762595446169,-316.19163953,0.00018,2]
[393403644,1762596205874,886.7010627,0.00038972,120]
[393403645,1762596233987,256.68124648,0.00038972,120]
[393403647,1762596300734,-172.47303695,0.00016438,2]
[393403648,1762596406319,-170.82696305,0.00016438,2]
[393403649,1762596406342,-281.1304056,0.00017,2]
[393403650,1762596410028,-186.74251173,0.00017,2]
[393403651,1762596412501,-240.32629728,0.00017,2]
[393403652,1762596585706,-291.80078539,0.00017,2]
[393403653,1762596585731,-21.62582293,0.00017102,2]
[393403654,1762596615723,-145.03417707,0.00017102,2]
[393403655,1762596615751,-250.0,0.00017219,2]
[393403656,1762596615780,-89.19364296,0.00017219,2]
[393403657,1762596618372,-105.80635704,0.00017219,2]
[393403658,1762596618407,-159.0356435,0.00017335,2]
[393403659,1762596624134,-301.038,0.00017335,2]
[393403660,1762596626649,-322.85329158,0.00017335,2]
[393403667,1762596631811,-78.59306492,0.00017335,2]
[393403668,1762596631820,-166.66,0.00017462,2]
[393403669,1762596631830,-176.96520198,0.00017587,2]
[393403670,1762596631840,-300.0,0.00017683,2]
[393403672,1762596631849,-300.0,0.00017683,2]
[393403674,1762596631858,-1200.0,0.00017683,2]
[393403675,1762596631868,-1805.72327216,0.00017684,2]
[393403676,1762596631879,-994.12251902,0.00017684,2]
[393403677,1762596631892,-326.03172292,0.00017684,2]
[393403678,1762596631919,-885.20544451,0.00017684,2]
[393403679,1762596631973,-1044.15393787,0.00017684,2]
[393403680,1762596632026,-627.03415411,0.0001763,2]
[393403681,1762596632081,-119.24961253,0.0001763,2]
[393403682,1762596632090,-2213.66139733,0.00017684,2]
[393403683,1762596632102,-7238.14019993,0.00017684,2]
[393403716,1762596637829,-664.98932389,0.00017429,2]
[393403718,1762596637988,-335.01067611,0.00017429,2]
[393403719,1762596637998,-4382.97604475,0.00017684,2]
[393403720,1762596638008,-500.0,0.000178,2]
[393403721,1762596638017,-201.47429591,0.00017804,2]
[393403722,1762596638026,-628.80954,0.0001782,2]
[393403723,1762596638036,-166.66,0.00017823,2]
[393403725,1762596638046,-327.0,0.00017898,2]
[393403727,1762596638056,-176.96520197,0.00017899,2]
[393403728,1762596638065,-447.0,0.00017899,2]
[393403729,1762596638076,-8143.38431728,0.000179,2]
[393403749,1762596639877,-1464.70628272,0.000179,2]
[393403751,1762596639888,-364.83608033,0.000179,2]
[393403754,1762596639899,-4156.19990002,0.000179,2]
[393403756,1762596639931,-179.07051965,0.000179,2]
[393403757,1762596639941,-371.58595442,0.000179,2]
[393403758,1762596639950,-193.48,0.00017969,2]
[393403760,1762596639960,-334.74684319,0.00017999,5]
[393403762,1762596639970,-465.05247331,0.00017999,2]
[393403764,1762596639984,-3119.0,0.00017999,2]
[393403782,1762596640145,-14784.16036199,0.00017999,2]
[393403784,1762596640155,-1215.3416959,0.00017999,2]
[393403786,1762596640167,-839.15,0.00017999,2]
[393403934,1762596649275,500.0,0.00038972,120]
[393403935,1762596649517,500.0,0.00038972,120]
[393403936,1762596649761,500.0,0.00038972,120]
[393403937,1762596649998,500.0,0.00038972,120]
[393403938,1762596650234,500.0,0.00038972,120]
[393403939,1762596650466,500.0,0.00038972,120]
[393403940,1762596650722,500.0,0.00038972,120]
[393403941,1762596650968,500.0,0.00038972,120]
[393403942,1762596651205,500.0,0.00038972,120]
[393403943,1762596651453,500.0,0.00038972,120]
[393403944,1762596651706,500.0,0.00038972,120]
[393403945,1762596651948,500.0,0.00038972,120]
[393403946,1762596652196,500.0,0.00038972,120]
[393403947,1762596652452,500.0,0.00038972,120]
[393403948,1762596652708,500.0,0.00038972,120]
[393403949,1762596652955,500.0,0.00038972,120]
[393403950,1762596653222,500.0,0.00038972,120]
[393403951,1762596653472,500.0,0.00038972,120]
[393403952,1762596653716,500.0,0.00038972,120]
[393403953,1762596653977,533.18027289,0.00038972,120]
[393403954,1762596705754,-247.00997466,0.00016338,2]
[393403956,1762596750717,-6.78132534,0.00016338,2]
[393403957,1762596750739,-198.23902309,0.00017552,2]
[393403958,1762596780713,-102.79897691,0.00017552,2]
[393403959,1762596780738,-115.26829074,0.0001764,2]
[393403960,1762596783469,-192.802366,0.0001764,2]
[393403971,1762596959481,450.13,0.00013699,2]
[393403973,1762597031988,500.0,0.00038972,120]
[393403974,1762597032222,500.0,0.00038972,120]
[393403975,1762597032471,500.0,0.00038972,120]
[393403976,1762597032710,500.0,0.00038972,120]
[393403977,1762597032947,500.0,0.00038972,120]
[393403978,1762597033182,514.0491132,0.00038972,120]
[393403980,1762597060193,500.0,0.00038976,120]
[393403981,1762597060473,500.0,0.00038976,120]
[393403982,1762597060734,500.0,0.00038976,120]
[393403983,1762597060962,500.0,0.00038976,120]
[393403984,1762597061202,500.0,0.00038976,120]
[393403985,1762597061441,500.0,0.00038976,120]
[393403986,1762597061665,500.0,0.00038976,120]
[393403987,1762597061888,500.0,0.00038976,120]
[393403988,1762597062117,500.0,0.00038976,120]
[393403989,1762597062354,500.0,0.00038976,120]
[393403990,1762597062587,228.65410962,0.00038976,120]
[393403991,1762597081361,500.0,0.00038976,30]
[393403992,1762597081607,447.37566164,0.00038976,30]
[393403993,1762597421376,-401.74,0.00016943,2]
[393403994,1762597421407,-244.6,0.00016949,2]
[393403995,1762597421435,-250.0,0.00016974,2]
[393403996,1762597421464,-200.0,0.00017062,2]
[393403997,1762597421495,-999.0,0.00017131,3]
[393403998,1762597421523,-1548.47,0.00017312,2]
[393403999,1762597421680,-2712.39,0.00017312,2]
[393404000,1762597421707,-213.93,0.00017379,2]
[393404001,1762597421734,-224.86764211,0.000175,2]
[393404002,1762597421762,-300.0,0.00017637,2]
[393404003,1762597421790,-300.0,0.00017638,2]
[393404004,1762597421818,-671.0,0.00017638,2]
[393404005,1762597421846,-300.0,0.00017639,2]
[393404006,1762597421927,-1200.0,0.00017639,2]
[393404007,1762597421956,-221.8861932,0.00017691,2]
[393404008,1762597421984,-200.0,0.00017753,2]
[393404009,1762597422011,-746.28376664,0.00017782,2]
[393404010,1762597422045,-600.0,0.000178,6]
[393404011,1762597433445,-7157.92138507,0.00017816,2]
[393404012,1762597433550,-4942.50252133,0.00017816,2]
[393404013,1762597433596,-115.00495734,0.00017825,2]
[393404014,1762597433681,-3823.19434376,0.00017825,2]
[393404015,1762597433718,-2353.62131248,0.00017899,2]
[393404016,1762597436391,-2587.25868752,0.00017899,2]
[393404017,1762597436423,-300.0,0.00017899,2]
[393404018,1762597436453,-2053.1200503,0.00017899,2]
[393404019,1762597436512,-119.25252436,0.000179,6]
[393404020,1762597436545,-1080.74747564,0.000179,6]
[393404021,1762597436575,-165.54080216,0.000179,2]
[393404022,1762597436607,-3675.26434064,0.000179,2]
[393404023,1762597436655,-156.90476312,0.000179,2]
[393404024,1762597436687,-526.5791,0.000179,2]
[393404025,1762597436717,-302.15201938,0.000179,2]
[393404026,1762597436751,-360.24998078,0.000179,2]
[393404027,1762597436779,-591.0062,0.000179,2]
[393404028,1762597436807,-2712.33689968,0.000179,2]
[393404029,1762597436879,-1015.36160032,0.000179,2]
[393404030,1762597442439,-300.0,0.00017972,2]
[393404031,1762597442469,-300.0,0.00017972,2]
[393404032,1762597442497,-500.0,0.00017973,2]
[393404033,1762597442527,-500.0,0.00017973,2]
[393404034,1762597442555,-500.0,0.00017973,2]
[393404035,1762597442582,-500.0,0.00017973,2]
[393404036,1762597442612,-500.0,0.00017973,2]
[393404037,1762597442640,-500.0,0.00017973,2]
[393404038,1762597442670,-164.43538034,0.00017973,2]
[393404039,1762597442699,-500.0,0.00017973,2]
[393404040,1762597442729,-500.84354259,0.00017973,2]
[393404041,1762597442811,-501.59027207,0.00017973,2]
[393404042,1762597442839,-500.0,0.00017973,2]
[393404043,1762597442867,-154.45775286,0.00017989,2]
[393404044,1762597442895,-150.0,0.00017989,2]
[393404045,1762597442922,-150.0,0.00017989,2]
[393404046,1762597442949,-150.0,0.00017989,2]
[393404047,1762597442977,-150.0,0.00017989,2]
[393404048,1762597443004,-410.89,0.00017989,2]
[393404049,1762597443037,-151.0,0.00017989,2]
[393404050,1762597443064,-151.0,0.00017989,2]
[393404051,1762597443093,-151.0,0.00017989,2]
[393404052,1762597443122,-151.0,0.00017989,2]
[393404053,1762597443154,-151.0,0.00017989,2]
[393404054,1762597443182,-151.0,0.00017989,2]
[393404055,1762597443210,-151.0,0.00017989,2]
[393404056,1762597443239,-151.0,0.00017989,2]
[393404057,1762597443272,-288.21982376,0.00017989,2]
[393404058,1762597443301,-151.0,0.00017989,2]
[393404059,1762597443332,-151.0,0.00017989,2]
[393404060,1762597443362,-151.0,0.00017989,2]
[393404061,1762597443391,-151.0,0.00017989,2]
[393404062,1762597443420,-151.0,0.00017989,2]
[393404063,1762597443449,-151.0,0.00017989,2]
[393404064,1762597443479,-151.0,0.00017989,2]
[393404065,1762597443508,-151.0,0.00017989,2]
[393404066,1762597443537,-106.69430262,0.00017989,2]
[393404067,1762597443908,-44.30569738,0.00017989,2]
[393404068,1762597443937,-151.0,0.00017989,2]
[393404069,1762597443966,-151.0,0.00017989,2]
[393404070,1762597443994,-151.0,0.00017989,2]
[393404071,1762597444026,-151.0,0.00017989,2]
[393404072,1762597444056,-151.0,0.00017989,2]
[393404073,1762597444085,-151.0,0.00017989,2]
[393404074,1762597444118,-151.0,0.00017989,2]
[393404075,1762597444147,-151.0,0.00017989,2]
[393404076,1762597444175,-151.0,0.00017989,2]
[393404077,1762597444205,-151.0,0.00017989,2]
[393404078,1762597444234,-151.0,0.00017989,2]
[393404079,1762597444262,-180.24684235,0.0001799,2]
[393404080,1762597444289,-151.0,0.00017997,2]
[393404081,1762597444320,-1559.733451,0.00017999,2]
[393404082,1762597445082,-648.30569738,0.00017999,2]
[393404083,1762597445097,-2498.17844422,0.00017999,2]
[393404084,1762597445107,-309.25957432,0.00017999,2]
[393404085,1762597454558,-157.54471885,0.00017973,2]
[393404086,1762597454587,-500.0,0.00017973,2]
[393404087,1762597454618,-500.0,0.00017973,2]
[393404088,1762597454646,-500.0,0.00017973,2]
[393404089,1762597454675,-217.18810693,0.00017973,2]
[393404090,1762597454703,-190.74042568,0.00017999,2]
[393404091,1762597454731,-500.0,0.00017999,2]
[393404092,1762597454760,-500.0,0.00017999,2]
[393404093,1762597454789,-500.0,0.00017999,2]
[393404094,1762597454816,-500.0,0.00017999,2]
[393404095,1762597454843,-500.0,0.00017999,2]
[393404096,1762597454872,-369.06349708,0.00017999,2]
[393404097,1762597455054,-130.93650292,0.00017999,2]
[393404098,1762597457577,-500.0,0.00017999,2]
[393404099,1762597457609,-500.0,0.00017999,2]
[393404100,1762597457643,-500.0,0.00017999,2]
[393404101,1762597457673,-524.00795,0.00017999,2]
[393404102,1762597457702,-500.0,0.00017999,2]
[393404103,1762597457730,-500.0,0.00017999,2]
[393404104,1762597457760,-500.0,0.00017999,2]
[393404105,1762597457788,-250.0,0.00017999,2]
[393404106,1762597457816,-500.0,0.00017999,2]
[393404107,1762597457847,-500.0,0.00017999,2]
[393404108,1762597458009,-194.63202349,0.00017999,2]
[393404109,1762597458172,-62.73005302,0.00017999,2]
[393404110,1762597460621,-159.36783616,0.00017999,2]
[393404111,1762597460656,-198.93819122,0.00017999,2]
[393404112,1762597460688,-207.39196769,0.00017999,2]
[393404113,1762597460746,-8868.61400986,0.00018,2]
[393404114,1762597519668,2990.28604211,9e-05,2]
[393404115,1762597524412,-775.29004926,0.000154,2]
[393404116,1762597558740,-151.0,0.00015952,2]
[393404117,1762597574209,151.0,0.00015939,2]
[393404118,1762597610028,243.76577845,0.00014865,2]
[393404122,1762597666602,288.81370748,0.00038976,120]
[393404123,1762597673589,9756.24422155,0.00015,2]
[393404124,1762597673615,10000.01,0.00015,2]
[393404125,1762597673641,10000.01,0.00015,2]
[393404126,1762597673680,10000.01,0.00015,2]
[393404127,1762597673707,10000.01,0.00015,2]
[393404128,1762597673733,10000.01,0.00015,2]
[393404129,1762597674420,-178.4637548,0.00015,2]
[393404130,1762597678287,-283.50225869,0.00015,2]
[393404131,1762597678457,-6858.72395789,0.00015,2]
[393404132,1762597681001,-10000.01,0.00015,2]
[393404133,1762597681245,-10000.01,0.00015,2]
[393404134,1762597681357,-10000.01,0.00015,2]
[393404135,1762597681499,-10000.01,0.00015,2]
[393404137,1762597683856,-10000.01,0.00015,2]
[393404138,1762597686986,-10000.01,0.00015,2]
[393404139,1762597687221,-10000.01,0.00015,2]
[393404140,1762597689929,-10000.01,0.00015,2]
[393404141,1762597695736,-160.19533334,0.00015,2]
[393404142,1762597696057,-10000.01,0.00015,2]
[393404143,1762597696251,-10000.01,0.00015,2]
[393404144,1762597696358,-10000.01,0.00015,2]
[393404145,1762597696478,-10000.01,0.00015,2]
[393404146,1762597696931,-10000.01,0.00015,2]
[393404147,1762597697149,-10000.01,0.00015,2]
[393404148,1762597697178,-156.25490963,0.00015,2]
[393404149,1762597697291,-10000.01,0.00015,2]
[393404150,1762597697398,-10000.01,0.00015,2]
[393404151,1762597697618,-10000.01,0.00015,2]
[393404152,1762597699193,-189.15036488,0.00015,2]
[393404153,1762597700637,-412.29479697,0.00015,2]
[393404154,1762597702008,-10000.01,0.00015,2]
[393404155,1762597702085,-151.00000017,0.00015,2]
[393404156,1762597703884,-338.44222972,0.00015,2]
[393404157,1762597705447,-307.0173961,0.00015,2]
[393404158,1762597707028,-183.97856495,0.00015,2]
[393404161,1762597708218,-10000.01,0.00015,2]
[393404162,1762597708454,-10000.01,0.00015,2]
[393404163,1762597708575,-10000.01,0.00015,2]
[393404164,1762597708726,-10000.01,0.00015,2]
[393404165,1762597708842,-10000.01,0.00015,2]
[393404166,1762597708959,-10000.01,0.00015,2]
[393404167,1762597709071,-10000.01,0.00015,2]
[393404168,1762597709231,-10000.01,0.00015,2]
[393404169,1762597710340,-288.21410473,0.00015,2]
[393404170,1762597711201,-10000.01,0.00015,2]
[393404171,1762597711594,-500.0,0.00014999,2]
[393404172,1762597711656,-612.35246574,0.00014999,2]
[393404173,1762597711666,-8387.65753426,0.00015,2]
[393404174,1762597711931,-382.22378156,0.00015,2]
[393404175,1762597714210,-10000.01,0.00015,2]
[393404176,1762597714329,-10000.01,0.00015,2]
[393404177,1762597714446,-10000.01,0.00015,2]
[393404178,1762597714579,-10000.01,0.00015,2]
[393404179,1762597714678,-10000.01,0.00015,2]
[393404180,1762597714792,-10000.01,0.00015,2]
[393404181,1762597714922,-10000.01,0.00015,2]
[393404182,1762597715032,-10000.01,0.00015,2]
[393404183,1762597716947,-335.66751489,0.00015,2]
[393404184,1762597717240,-10000.01,0.00015,2]
[393404185,1762597719756,-195.0,0.00015,2]
[393404186,1762597722640,-464.44003625,0.00014999,2]
[393404187,1762597724089,-35.55996375,0.00014999,2]
[393404188,1762597724116,-144.01094048,0.00014999,2]
[393404189,1762597725554,-161.06834118,0.00014999,2]
[393404190,1762597726336,-194.92071834,0.00014999,2]
[393404191,1762597726369,-610.16432396,0.00014999,2]
[393404192,1762597726398,-612.84786107,0.00014999,2]
[393404193,1762597726456,-7164.14419326,0.00015,2]
[393404194,1762597726535,-958.32160594,0.00015,2]
[393404195,1762597726557,-8083.36678812,0.00015,2]
[393404199,1762597736251,500.0,0.00014999,2]
[393404200,1762597756615,500.0,0.00014999,2]
[393404201,1762597788999,154.12324818,0.00014999,2]
[393404202,1762597820411,500.0,0.00014999,2]
[393404210,1762597831976,-300.0,0.00016437,2]
[393404211,1762597831986,-209.16224202,0.00016437,2]
[393404212,1762597832141,-990.83775798,0.00016437,2]
[393404213,1762597832150,-195.0,0.00016719,2]
[393404214,1762597832159,-1638.95,0.00017,2]
[393404215,1762597832168,-10847.87,0.00017053,2]
[393404216,1762597832179,-195.0,0.00017198,2]
[393404217,1762597832188,-5640.3,0.00017354,2]
[393404218,1762597832198,-1580.36,0.00017499,2]
[393404219,1762597832207,-600.0,0.000177,6]
[393404220,1762597832216,-1500.0,0.000177,6]
[393404221,1762597832226,-195.0,0.00017724,2]
[393404222,1762597832235,-300.0,0.00017724,2]
[393404223,1762597832244,-250.0,0.00017724,2]
[393404224,1762597832254,-1200.0,0.000178,6]
[393404225,1762597832264,-3000.0,0.000178,6]
[393404226,1762597832273,-338.4423,0.00017873,2]
[393404227,1762597832282,-1200.0,0.00017899,2]
[393404228,1762597832292,-1900.0,0.000179,6]
[393404229,1762597832302,-1739.5898,0.000179,2]
[393404231,1762597832311,-234.4091,0.000179,2]
[393404233,1762597832319,-3448.95219342,0.000179,2]
[393404234,1762597832329,-271.93681746,0.000179,2]
[393404235,1762597832339,-4600.0,0.000179,6]
[393404236,1762597832348,-1000.0,0.000179,2]
[393404237,1762597832357,-1000.0,0.000179,2]
[393404238,1762597832365,-4072.479,0.000179,2]
[393404239,1762597832374,-2141.1976,0.000179,2]
[393404240,1762597832384,-2500.0,0.000179,2]
[393404242,1762597832393,-420.0,0.00017963,2]
[393404244,1762597832402,-1085.1018,0.00017973,2]
[393404246,1762597832411,-500.0,0.00017973,2]
[393404247,1762597832420,-500.0,0.00017973,2]
[393404248,1762597832430,-500.0,0.00017973,2]
[393404249,1762597832440,-167.44385629,0.00017973,2]
[393404250,1762597832449,-180.65713594,0.00017973,2]
[393404251,1762597832459,-449.38309733,0.00017973,2]
[393404252,1762597832469,-625.66484085,0.00017973,2]
[393404253,1762597832478,-501.35810388,0.00017973,2]
[393404254,1762597832487,-500.0,0.00017973,2]
[393404255,1762597832496,-500.0,0.00017973,2]
[393404256,1762597832506,-500.0,0.00017973,2]
[393404257,1762597832516,-500.0,0.00017973,2]
[393404258,1762597832526,-254.97811485,0.00017977,2]
[393404259,1762597832697,-151.0,0.00017989,2]
[393404260,1762597832708,-164.78017624,0.00017989,2]
[393404261,1762597832717,-547.16,0.0001799,2]
[393404262,1762597832726,-547.16,0.0001799,2]
[393404263,1762597832735,-547.16,0.0001799,2]
[393404264,1762597832744,-547.16,0.0001799,2]
[393404265,1762597832753,-547.16,0.0001799,2]
[393404266,1762597832763,-240.92100518,0.0001799,2]
[393404267,1762597832772,-151.0,0.00017997,2]
[393404268,1762597832781,-500.0,0.00017999,2]
[393404269,1762597832791,-500.0,0.00017999,2]